bitfinex-derivatives/quotes_SOLF0:USTF0_20260129
["timestamp","ask_amount","ask_price","bid_price","bid_amount"]
[1769697370450,2.85330737,121.58,121.49,3.60588329]
[1769697370657,7.4166,121.54,121.46,3.60588329]
[1769697371042,2.85330737,121.56,121.46,3.60588329]
[1769697371243,7.4145,121.58,121.49,3.60588329]
[1769697371541,2.85330737,121.59,121.49,3.60588329]
[1769697371747,318.28530737,121.62,121.53,11.02278329]
[1769697371949,310.87330737,121.62,121.53,11.02278329]
[1769697372148,7.4128,121.6,121.53,3.60588329]
[1769697372451,2.85330737,121.61,121.53,3.60588329]
[1769697372951,7.4134,121.59,121.53,3.60588329]
[1769697373147,2.85330737,121.61,121.53,3.60588329]
[1769697373347,308.02,121.62,121.53,3.60588329]
[1769697373747,308.02,121.62,121.54,3.60588329]
[1769697374259,308.02,121.62,121.55,7.4157]
[1769697374757,308.02,121.62,121.54,3.60588329]
[1769697375056,315.4316,121.62,121.54,11.02208329]
[1769697375553,7.4122,121.61,121.54,3.60588329]
[1769697375753,2.85330737,121.61,121.52,7.4171]
[1769697375957,2.85330737,121.6,121.48,3.60588329]
[1769697376255,2.85330737,121.6,121.49,3.60588329]
[1769697376451,7.4141,121.58,121.5,7.4183]
[1769697377954,12.58422319,121.58,121.5,7.4183]
[1769697378258,7.4146,121.57,121.5,7.4183]
[1769697378459,5.17012319,121.58,121.5,7.4183]
[1769697379056,5.17012319,121.62,121.52,3.60588329]
[1769697379254,5.17012319,121.62,121.53,3.60588329]
[1769697379564,7.4128,121.6,121.53,11.02228329]
[1769697379853,2.85330737,121.63,121.53,3.60588329]
[1769697381059,2.85330737,121.6,121.5,3.60588329]
[1769697381257,5.17012319,121.58,121.5,3.60588329]
[1769697381452,12.58412319,121.58,121.51,7.4182]
[1769697381653,5.17012319,121.58,121.51,7.4182]
[1769697382152,5.17012319,121.58,121.52,7.4175]
[1769697382657,12.58412319,121.58,121.5,3.60588329]
[1769697384651,7.4146,121.57,121.5,3.60588329]
[1769697385254,7.4152,121.56,121.5,3.60588329]
[1769697385452,2.8412164,121.57,121.47,10.75880067]
[1769697385648,5.17012319,121.55,121.44,3.33820067]
[1769697385856,2.8412164,121.54,121.44,3.33820067]
[1769697386156,7.4182,121.51,121.44,3.33820067]
[1769697387265,7.419,121.5,121.44,3.33820067]
[1769697388160,2.8412164,121.52,121.44,3.33820067]
[1769697388463,2.8412164,121.56,121.45,3.33820067]
[1769697388765,5.17012319,121.58,121.47,3.33820067]
[1769697389059,7.4144,121.58,121.5,7.4188]
[1769697389463,118.1734164,121.58,121.49,3.33820067]
[1769697389651,2.8412164,121.57,121.49,3.33820067]
[1769697389857,5.17012319,121.55,121.46,3.33820067]
[1769697390366,118.1922164,121.56,121.46,3.33820067]
[1769697390763,7.4159,121.55,121.46,10.75950067]
[1769697391266,12.58602319,121.55,121.46,10.75950067]
[1769697391462,15.42723959,121.55,121.46,10.75950067]
[1769697391658,15.42723959,121.55,121.47,7.4205]
[1769697391866,10.2571164,121.55,121.47,7.4205]
[1769697392062,10.2571164,121.55,121.46,3.33820067]
[1769697393466,10.2571164,121.55,121.46,10.75930067]
[1769697393767,10.2571164,121.55,121.46,3.33820067]
[1769697395468,10.2571164,121.55,121.47,7.4207]
[1769697396758,15.42723959,121.55,121.47,7.4207]
[1769697398565,7.4165,121.54,121.47,7.4207]
[1769697399266,7.4165,121.54,121.48,7.42]
[1769697399664,2.84483633,121.54,121.48,7.42]
[1769697400266,10.26133633,121.54,121.48,7.42]
[1769697401465,2.84483633,121.54,121.49,7.4193]
[1769697401864,2.84483633,121.54,121.46,3.33820067]
[1769697402275,15.43155952,121.54,121.46,3.33820067]
[1769697402770,8.01495952,121.54,121.46,3.33820067]
[1769697403068,8.01495952,121.54,121.46,10.75940067]
[1769697403766,8.01495952,121.54,121.46,3.33820067]
[1769697404767,10.26243633,121.53,121.46,3.33820067]
[1769697404966,2.84483633,121.53,121.46,3.33820067]
[1769697406470,7.4178,121.52,121.46,3.33820067]
[1769697407371,7.4184,121.51,121.43,10.88574637]
[1769697407565,2.84483633,121.5,121.43,3.46304637]
[1769697408265,2.84483633,121.49,121.4,3.46304637]
[1769697408776,2.84483633,121.52,121.44,3.46304637]
[1769697409378,7.4189,121.5,121.44,3.46304637]
[1769697412970,2.84483633,121.5,121.41,10.88724637]
[1769697413473,7.4201,121.48,121.41,10.88724637]
[1769697413768,2.84483633,121.5,121.43,10.88584637]
[1769697413976,7.4194,121.5,121.44,3.46304637]
[1769697414878,2.84483633,121.51,121.44,3.46304637]
[1769697415567,2.84483633,121.51,121.44,10.88544637]
[1769697415967,2.84483633,121.51,121.44,3.46304637]
[1769697416175,2.84483633,121.51,121.45,7.4218]
[1769697417093,305.64,121.53,121.46,3.35394314]
[1769697417275,2.84508216,121.54,121.46,3.35394314]
[1769697417574,2.84508216,121.57,121.49,3.35394314]
[1769697418189,10.25968216,121.57,121.5,7.4182]
[1769697418571,307.14,121.58,121.49,3.35394314]
[1769697418572,2.84508216,121.56,121.49,3.35394314]
[1769697418772,10.26028216,121.56,121.49,10.77334314]
[1769697420575,10.26098216,121.55,121.49,7.4194]
[1769697421478,2.84508216,121.55,121.49,7.4194]
[1769697422671,2.84508216,121.55,121.45,115.4488]
[1769697422672,2.84508216,121.55,121.45,3.35394314]
[1769697422883,2.84508216,121.53,121.42,3.35394314]
[1769697423076,7.4189,121.5,121.42,3.35394314]
[1769697423477,2.84508216,121.5,121.42,3.35394314]
[1769697423672,7.4204,121.48,121.42,3.35394314]
[1769697425176,7.4215,121.46,121.39,3.35394314]
[1769697425380,8.0131113,121.48,121.39,3.35394314]
[1769697425582,2.84508216,121.48,121.39,3.35394314]
[1769697425779,312.82802914,121.5,121.39,3.35394314]
[1769697426086,2.84508216,121.5,121.42,3.35394314]
[1769697426587,2.84508216,121.5,121.43,3.35394314]
[1769697428280,10.26398216,121.5,121.43,3.35394314]
[1769697428985,2.84508216,121.49,121.42,7.4236]
[1769697429187,2.84508216,121.46,121.37,3.35394314]
[1769697429805,2.84508216,121.49,121.39,3.35394314]
[1769697430098,307.94,121.5,121.4,3.35394314]
[1769697430099,2.84508216,121.5,121.4,3.35394314]
[1769697430496,10.26438216,121.5,121.41,10.77804314]
[1769697430899,2.84508216,121.5,121.42,3.35394314]
[1769697431694,2.84508216,121.48,121.39,3.35394314]
[1769697431896,2.84508216,121.48,121.39,10.77944314]
[1769697432193,2.84508216,121.48,121.4,3.35394314]
[1769697432405,2.84508216,121.48,121.37,125.64963326]
[1769697432406,2.84508216,121.46,121.37,3.35394314]
[1769697433297,7.4221,121.45,121.37,10.78054314]
[1769697434094,7.4221,121.45,121.38,3.35394314]
[1769697436195,7.4226,121.44,121.38,3.35394314]
[1769697437691,10.26768216,121.44,121.37,7.4267]
[1769697439496,2.84508216,121.44,121.37,7.4267]
[1769697441402,2.84508216,121.47,121.38,3.35394314]
[1769697442002,2.84508216,121.47,121.39,3.35394314]
[1769697442202,2.84508216,121.5,121.41,3.35394314]
[1769697442695,2.84508216,121.5,121.43,7.4231]
[1769697443205,10.26398216,121.5,121.43,7.4231]
[1769697446808,307.04,121.51,121.44,10.73254354]
[1769697447508,309.88469966,121.51,121.44,10.73254354]
[1769697448004,309.88469966,121.51,121.45,7.4216]
[1769697448314,307.04,121.51,121.45,10.73194354]
[1769697448503,2.84469966,121.57,121.49,10.72964354]
[1769697448702,2.84469966,121.57,121.49,3.31034354]
[1769697448901,2.84469966,121.6,121.5,3.31034354]
[1769697449399,2.84469966,121.6,121.53,7.4169]
[1769697450103,570.94765473,121.61,121.54,10.72664354]
[1769697450412,2.84469966,121.6,121.51,3.31034354]
[1769697450799,2.84469966,121.6,121.53,7.4169]
[1769697451104,309.1,121.61,121.53,3.31034354]
[1769697451304,309.1,121.61,121.54,10.72644354]
[1769697451806,2.84469966,121.63,121.55,3.31034354]
[1769697452899,2.84263558,121.65,121.56,3.6038233]
[1769697454207,7.4104,121.64,121.56,3.6038233]
[1769697454407,2.84263558,121.62,121.53,3.6038233]
[1769697454808,2.84263558,121.61,121.53,3.6038233]
[1769697455308,2.84263558,121.63,121.53,3.6038233]
[1769697455704,2.84263558,121.63,121.54,11.0200233]
[1769697457013,10.25373558,121.63,121.55,11.0194233]
[1769697457205,2.84263558,121.6,121.52,3.6038233]
[1769697457705,120.44222914,121.64,121.52,3.6038233]
[1769697457906,2.84263558,121.63,121.53,3.6038233]
[1769697458111,2.84263558,121.63,121.55,11.0193233]
[1769697458910,2.84263558,121.63,121.56,7.4149]
[1769697459116,7.4108,121.64,121.56,11.0187233]
[1769697459412,10.25193558,121.66,121.57,3.6038233]
[1769697459607,2.84263558,121.66,121.58,11.0176233]
[1769697459809,2.84263558,121.69,121.59,3.6038233]
[1769697460204,7.4083,121.68,121.59,11.0169233]
[1769697460616,10.25093558,121.68,121.59,11.0169233]
[1769697461215,10.25093558,121.68,121.6,3.6038233]
[1769697461822,7.4088,121.67,121.6,3.6038233]
[1769697462212,2.84263558,121.68,121.6,3.6038233]
[1769697462518,2.84263558,121.7,121.6,3.6038233]
[1769697462710,7.4064,121.71,121.61,3.6038233]
[1769697463117,7.4064,121.71,121.62,3.6038233]
[1769697463312,2.84263558,121.73,121.63,3.6038233]
[1769697463521,10.24773558,121.73,121.63,3.6038233]
[1769697464024,424.7571,121.75,121.63,3.6038233]
[1769697464025,7.4039,121.75,121.65,3.6038233]
[1769697464319,2.84263558,121.76,121.67,3.6038233]
[1769697464516,10.24583558,121.76,121.67,3.6038233]
[1769697465816,2.84263558,121.79,121.69,3.6038233]
[1769697466015,2.84263558,121.79,121.7,3.6038233]
[1769697466616,10.24233558,121.82,121.72,11.0087233]
[1769697466920,10.24233558,121.82,121.73,3.6038233]
[1769697467109,2.84263558,121.81,121.7,11.0101233]
[1769697467310,2.84263558,121.8,121.7,11.0101233]
[1769697467715,2.84263558,121.78,121.7,3.6038233]
[1769697468014,2.84263558,121.78,121.67,3.6038233]
[1769697468812,2.84263558,121.78,121.68,11.0114233]
[1769697469320,2.84263558,121.78,121.69,3.6038233]
[1769697469711,2.84263558,121.78,121.7,7.4064]
[1769697469911,2.84263558,121.78,121.69,3.6038233]
[1769697470117,2.84263558,121.77,121.68,3.6038233]
[1769697470619,2.84263558,121.77,121.7,3.6038233]
[1769697471322,2.84263558,121.8,121.71,118.8077233]
[1769697471517,2.84263558,121.8,121.72,3.6038233]
[1769697471820,10.24343558,121.8,121.72,3.6038233]
[1769697472016,2.84263558,121.79,121.72,3.6038233]
[1769697472823,2.84263558,121.79,121.72,11.0091233]
[1769697473227,2.84263558,121.79,121.72,3.6038233]
[1769697474822,10.24403558,121.79,121.72,3.6038233]
[1769697476118,7.4019,121.78,121.69,10.72320681]
[1769697476320,10.24231158,121.78,121.69,10.72320681]
[1769697476520,10.24231158,121.78,121.7,3.31620681]
[1769697476829,7.4019,121.78,121.7,3.31620681]
[1769697477024,7.4019,121.78,121.69,7.407]
[1769697477025,7.4011,121.8,121.71,3.31620681]
[1769697477329,2.84041158,121.8,121.71,3.31620681]
[1769697478334,7.4013,121.79,121.71,10.72210681]
[1769697479628,2.84041158,121.8,121.72,7.4051]
[1769697480532,2.84041158,121.8,121.73,3.31620681]
[1769697480736,10.24101158,121.8,121.73,10.72090681]
[1769697481228,5.14815034,121.82,121.74,7.4041]
[1769697481434,2.84041158,121.82,121.74,7.4041]
[1769697481629,2.84041158,121.82,121.74,3.31620681]
[1769697482326,7.4001,121.81,121.74,3.31620681]
[1769697482638,2.84041158,121.81,121.74,3.31620681]
[1769697482830,7.4008,121.8,121.74,3.31620681]
[1769697483031,115.0996,121.83,121.74,3.31620681]
[1769697483232,117.94001158,121.83,121.74,3.31620681]
[1769697483629,2.84041158,121.83,121.75,3.31620681]
[1769697484229,2.84041158,121.83,121.75,10.71980681]
[1769697484735,117.93491158,121.83,121.75,3.31620681]
[1769697485034,2.84041158,121.82,121.75,3.31620681]
[1769697486231,10.24031158,121.82,121.75,3.31620681]
[1769697486630,115.0737,121.85,121.75,3.31620681]
[1769697486631,117.91411158,121.85,121.75,3.31620681]
[1769697487135,7.3988,121.83,121.76,7.403]
[1769697487329,2.84041158,121.83,121.75,3.31620681]
[1769697487728,7.3995,121.82,121.75,3.31620681]
[1769697487931,2.84041158,121.82,121.74,7.4038]
[1769697488133,2.84041158,121.82,121.74,10.72000681]
[1769697489326,7.4001,121.81,121.74,10.72000681]
[1769697490329,2.84041158,121.81,121.72,7.4048]
[1769697490637,2.84041158,121.81,121.72,10.72100681]
[1769697490839,2.84041158,121.81,121.73,3.31620681]
[1769697491032,10.24081158,121.81,121.73,3.31620681]
[1769697491531,7.4006,121.8,121.73,3.31620681]
[1769697491738,2.84041158,121.8,121.73,3.31620681]
[1769697492330,2.84041158,121.79,121.7,3.31620681]
[1769697492532,2.84041158,121.78,121.7,3.31620681]
[1769697492732,10.24281158,121.78,121.7,3.31620681]
[1769697493031,2.84041158,121.78,121.7,3.31620681]
[1769697494437,7.4025,121.77,121.7,10.72250681]
[1769697494633,2.84041158,121.78,121.7,3.31620681]
[1769697494943,2.84041158,121.76,121.66,3.31620681]
[1769697495130,7.4036,121.75,121.68,3.31620681]
[1769697495540,2.84041158,121.76,121.68,3.31620681]
[1769697495734,10.24401158,121.76,121.69,10.72320681]
[1769697495934,2.84041158,121.76,121.69,3.31620681]
[1769697497436,7.4037,121.75,121.69,3.31620681]
[1769697498347,5.14815034,121.77,121.7,3.31620681]
[1769697498348,7.4029,121.77,121.7,3.31620681]
[1769697498845,2.84041158,121.79,121.7,3.31620681]
[1769697499233,7.4024,121.77,121.7,10.72270681]
[1769697499740,2.84041158,121.79,121.7,3.31620681]
[1769697499940,7.402,121.78,121.7,10.72280681]
[1769697500144,2.84041158,121.78,121.7,3.31620681]
[1769697500843,7.4025,121.77,121.7,3.31620681]
[1769697501338,2.84041158,121.78,121.71,3.31620681]
[1769697502339,10.24221158,121.78,121.71,10.72220681]
[1769697502845,10.24221158,121.78,121.68,3.31620681]
[1769697502846,7.4044,121.74,121.68,3.31620681]
[1769697503840,7.98856192,121.75,121.68,10.72400681]
[1769697505350,15.39226192,121.75,121.68,10.72400681]
[1769697505949,7.4045,121.74,121.68,3.31620681]
[1769697506137,2.84583594,121.74,121.66,3.42215597]
[1769697506342,7.99398628,121.73,121.66,3.42215597]
[1769697507046,15.39888628,121.73,121.66,10.83125597]
[1769697507241,15.39888628,121.73,121.66,3.42215597]
[1769697507447,10.25073594,121.73,121.66,3.42215597]
[1769697507643,7.4041,121.75,121.66,3.42215597]
[1769697507843,10.24993594,121.75,121.66,3.42215597]
[1769697508450,10.24993594,121.75,121.67,7.4079]
[1769697509149,10.24993594,121.75,121.68,7.4076]
[1769697509544,10.24993594,121.75,121.67,3.42215597]
[1769697509842,2.84583594,121.75,121.67,118.66215597]
[1769697510048,2.84583594,121.75,121.67,3.42215597]
[1769697511446,10.24973594,121.75,121.69,7.4072]
[1769697511952,10.24973594,121.75,121.67,3.42215597]
[1769697512144,313.16863594,121.77,121.69,10.82915597]
[1769697512448,305.76583594,121.77,121.69,10.82915597]
[1769697512849,302.92,121.77,121.71,3.325149]
[1769697513151,2.84661759,121.8,121.71,3.325149]
[1769697513846,2.84661759,121.77,121.71,10.730849]
[1769697514052,2.84661759,121.77,121.71,3.325149]
[1769697514550,2.84661759,121.77,121.71,10.731149]
[1769697515152,10.24901759,121.77,121.71,3.325149]
[1769697515347,10.24901759,121.77,121.7,7.4063]
[1769697515546,10.24901759,121.77,121.7,10.731449]
[1769697516243,7.4031,121.76,121.7,10.731449]
[1769697516451,2.84661759,121.75,121.67,3.325149]
[1769697516649,2.84661759,121.74,121.67,3.325149]
[1769697516858,7.4063,121.71,121.64,10.735449]
[1769697517047,2.84661759,121.73,121.65,3.325149]
[1769697517353,7.405,121.73,121.67,7.4085]
[1769697517859,7.405,121.73,121.65,3.325149]
[1769697518154,10.25221759,121.72,121.65,3.325149]
[1769697518455,2.84661759,121.72,121.65,3.325149]
[1769697518654,7.4062,121.71,121.65,3.325149]
[1769697524355,2.84661759,121.72,121.65,3.325149]
[1769697524749,2.84661759,121.74,121.66,3.325149]
[1769697525659,2.84661759,121.74,121.67,10.733549]
[1769697526058,302.32,121.76,121.67,3.325149]
[1769697526461,305.16661759,121.76,121.67,3.325149]
[1769697526758,10.25011759,121.76,121.69,7.4072]
[1769697526956,2.84661759,121.76,121.69,3.325149]
[1769697529462,7.99476793,121.79,121.7,3.325149]
[1769697530362,2.84661759,121.78,121.71,7.4057]
[1769697530662,2.84661759,121.81,121.72,3.325149]
[1769697530962,2.84661759,121.81,121.73,3.325149]
[1769697531158,2.84661759,121.81,121.75,7.4032]
[1769697531360,2.84661759,121.84,121.76,3.325149]
[1769697531561,2.84661759,121.84,121.77,7.4021]
[1769697532463,2.84661759,121.87,121.79,3.325149]
[1769697532864,2.84661759,121.87,121.79,118.455049]
[1769697533067,7.47729182,121.89,121.81,3.325149]
[1769697533257,7.47729182,121.89,121.81,118.434249]
[1769697533764,7.47729182,121.89,121.81,3.325149]
[1769697533955,2.84661759,121.88,121.78,3.325149]
[1769697534469,2.84661759,121.88,121.8,3.325149]
[1769697534763,2.84661759,121.88,121.81,3.325149]
[1769697535760,2.84661759,121.88,121.81,10.724849]
[1769697538657,2.84913873,121.87,121.79,7.4008]
[1769697540265,10.24553873,121.87,121.79,10.73896033]
[1769697540469,2.84913873,121.86,121.79,10.73896033]
[1769697540671,2.84913873,121.86,121.78,3.33816033]
[1769697541170,7.47981296,121.89,121.79,3.33816033]
[1769697541565,10.24503873,121.88,121.79,3.33816033]
[1769697541973,2.84913873,121.88,121.81,10.73796033]
[1769697542274,10.24493873,121.88,121.81,3.33816033]
[1769697544168,2.84913873,121.88,121.81,10.73766033]
[1769697544371,4.63067423,121.89,121.81,3.33816033]
[1769697546273,12.02587423,121.89,121.82,7.3993]
[1769697546778,4.63067423,121.89,121.82,10.73746033]
[1769697547173,4.63067423,121.89,121.83,7.3987]
[1769697547380,4.63067423,121.89,121.83,10.73686033]
[1769697549882,4.63067423,121.89,121.84,7.3981]
[1769697552988,2.84913873,121.95,121.86,3.33816033]
[1769697553186,2.01418878,121.94,121.86,5.35234911]
[1769697553581,2.84913873,121.95,121.86,3.33816033]
[1769697553988,3.41593411,121.93,121.84,3.33816033]
[1769697554892,10.80923411,121.92,121.86,7.3969]
[1769697555094,10.80923411,121.92,121.84,3.33816033]
[1769697555296,10.81013411,121.91,121.84,10.73576033]
[1769697556689,10.81013411,121.91,121.85,7.3975]
[1769697557090,10.81063411,121.9,121.81,118.44706033]
[1769697557290,10.81063411,121.9,121.82,3.33816033]
[1769697557692,10.81063411,121.9,121.84,7.3981]
[1769697558395,15.9446169,121.92,121.84,10.73626033]
[1769697558589,3.41593411,121.92,121.84,3.33816033]
[1769697558784,3.41593411,121.92,121.85,118.40526033]
[1769697559189,3.41593411,121.92,121.85,3.33816033]
[1769697559892,3.41593411,121.92,121.82,3.33816033]
[1769697560689,7.3946,121.9,121.84,7.3981]
[1769697560895,3.41593411,121.92,121.84,7.3981]
[1769697561494,10.80983411,121.92,121.85,7.3975]
[1769697561693,3.41593411,121.91,121.85,7.3975]
[1769697562894,7.3939,121.92,121.85,10.73566033]
[1769697563094,15.9436169,121.93,121.86,7.3969]
[1769697563399,3.41593411,121.92,121.86,7.3969]
[1769697564503,10.80923411,121.92,121.86,7.3969]
[1769697564700,10.80923411,121.92,121.85,10.73566033]
[1769697565593,3.5554278,121.91,121.82,3.59490135]
[1769697565900,3.5554278,121.89,121.82,3.59490135]
[1769697566097,10.9511278,121.89,121.82,10.99430135]
[1769697566294,3.5554278,121.89,121.79,3.59490135]
[1769697567291,10.9523278,121.87,121.8,7.4004]
[1769697568291,10.9525278,121.86,121.79,3.59490135]
[1769697568598,3.5554278,121.86,121.79,3.59490135]
[1769697568997,115.067,121.86,121.77,7.4022]
[1769697569202,3.5554278,121.85,121.77,7.4022]
[1769697569596,7.3981,121.84,121.77,7.4022]
[1769697570097,10.9535278,121.84,121.77,7.4022]
[1769697570298,7.3989,121.83,121.77,10.99710135]
[1769697570501,3.5554278,121.83,121.77,3.59490135]
[1769697571604,3.5554278,121.83,121.74,3.59490135]
[1769697571810,3.5554278,121.8,121.71,3.59490135]
[1769697572102,3.5554278,121.79,121.71,3.59490135]
[1769697572605,7.4035,121.76,121.68,10.9617076]
[1769697573297,7.4038,121.75,121.68,3.5540076]
[1769697573606,3.52292184,121.77,121.68,3.5540076]
[1769697575409,10.92572184,121.77,121.68,3.5540076]
[1769697575909,3.52292184,121.76,121.68,3.5540076]
[1769697576097,3.52292184,121.74,121.66,3.5540076]
[1769697576301,3.52292184,121.73,121.66,3.5540076]
[1769697577012,7.4058,121.72,121.66,3.5540076]
[1769697577702,3.52292184,121.75,121.66,3.5540076]
[1769697578702,7.4044,121.74,121.66,10.9628076]
[1769697578902,10.92732184,121.74,121.66,3.5540076]
[1769697581220,3.52292184,121.73,121.66,3.5540076]
[1769697581418,3.52292184,121.72,121.63,3.5540076]
[1769697581903,10.92902184,121.71,121.63,10.9648076]
[1769697582807,3.52292184,121.71,121.64,7.4102]
[1769697583916,3.52292184,121.71,121.65,7.4094]
[1769697587619,2.02106344,121.69,121.65,7.4094]
[1769697587818,2.02106344,121.7,121.65,7.4094]
[1769697588113,5.54398528,121.73,121.66,118.8015076]
[1769697588318,3.52292184,121.73,121.66,120.82257104]
[1769697588912,2.02106344,121.74,121.68,7.4078]
[1769697589223,2.02106344,121.77,121.7,3.5540076]
[1769697589607,3.52292184,121.77,121.7,3.5540076]
[1769697591417,10.92542184,121.77,121.7,3.5540076]
[1769697592121,7.4031,121.76,121.7,10.9606076]
[1769697592515,7.4031,121.76,121.67,3.5540076]
[1769697592516,3.52292184,121.76,121.67,3.5540076]
[1769697592825,3.52292184,121.74,121.67,3.5540076]
[1769697593521,3.52292184,121.71,121.64,3.5540076]
[1769697595320,10.92902184,121.71,121.64,10.9639076]
[1769697595923,7.4067,121.7,121.64,3.5540076]
[1769697596220,8.67232428,121.71,121.62,10.99805699]
[1769697596425,3.49042367,121.7,121.62,10.99805699]
[1769697596622,3.49042367,121.69,121.62,3.58705699]
[1769697597622,7.4086,121.67,121.6,7.4124]
[1769697597816,7.4086,121.67,121.6,10.99945699]
[1769697598013,3.49042367,121.67,121.6,3.58705699]
[1769697598218,7.4098,121.65,121.6,3.58705699]
[1769697598419,3.49042367,121.67,121.6,3.58705699]
[1769697598836,7.4098,121.65,121.6,3.58705699]
[1769697599722,10.90082367,121.64,121.57,3.58705699]
[1769697601132,3.49042367,121.64,121.57,3.58705699]
[1769697601528,3.49042367,121.66,121.57,3.58705699]
[1769697601725,3.49042367,121.66,121.57,11.00155699]
[1769697602030,3.49042367,121.66,121.58,3.58705699]
[1769697602232,115.2153,121.7,121.61,3.58705699]
[1769697602233,10.89812367,121.69,121.61,3.58705699]
[1769697602732,7.4087,121.67,121.61,3.58705699]
[1769697604031,10.89812367,121.69,121.61,3.58705699]
[1769697604433,115.1975,121.72,121.63,3.58705699]
[1769697604434,3.49042367,121.72,121.63,3.58705699]
[1769697604923,316.63068155,121.75,121.65,3.58705699]
[1769697605129,3.49042367,121.73,121.65,3.58705699]
[1769697605326,10.89662367,121.71,121.63,7.4107]
[1769697605729,10.89662367,121.71,121.63,10.99775699]
[1769697606124,3.49042367,121.7,121.61,7.4117]
[1769697606628,10.89842367,121.68,121.6,3.58705699]
[1769697607128,3.49042367,121.68,121.6,3.58705699]
[1769697608533,7.4085,121.67,121.6,10.99975699]
[1769697609229,3.49042367,121.66,121.58,7.4135]
[1769697610334,7.4098,121.65,121.58,7.4135]
[1769697610630,3.49042367,121.64,121.54,3.58705699]
[1769697610838,7.4122,121.61,121.54,3.58705699]
[1769697611229,3.49042367,121.6,121.51,3.58705699]
[1769697611534,8.65141882,121.59,121.51,3.58705699]
[1769697611733,8.65141882,121.59,121.51,11.00515699]
[1769697611935,8.65141882,121.59,121.51,3.58705699]
[1769697612337,7.4141,121.58,121.51,3.58705699]
[1769697613039,3.49042367,121.57,121.48,14.75534942]
[1769697613236,118.84162367,121.56,121.48,7.33584942]
[1769697613538,3.49042367,121.55,121.48,3.74879243]
[1769697613742,118.85232367,121.55,121.48,3.74879243]
[1769697614230,7.4172,121.53,121.48,3.74879243]
[1769697614830,10.90672367,121.55,121.48,3.74879243]
[1769697615232,7.4165,121.54,121.48,3.74879243]
[1769697615432,3.49042367,121.53,121.45,3.58705699]
[1769697616437,413.75219515,121.56,121.48,3.58705699]
[1769697616438,3.49042367,121.56,121.48,3.58705699]
[1769697616635,3.49042367,121.56,121.49,3.58705699]
[1769697617140,3.49042367,121.56,121.47,7.4202]
[1769697617539,3.49042367,121.56,121.47,11.00725699]
[1769697618540,3.49042367,121.56,121.49,3.58705699]
[1769697619334,3.49042367,121.56,121.5,7.4187]
[1769697619540,294.94,121.58,121.5,11.00575699]
[1769697620037,3.49042367,121.59,121.5,3.58705699]
[1769697620339,3.49042367,121.58,121.48,11.00665699]
[1769697621439,7.4147,121.57,121.48,11.00665699]
[1769697621942,7.4147,121.57,121.49,7.4193]
[1769697622144,3.49042367,121.58,121.49,3.58705699]
[1769697622946,3.49042367,121.58,121.51,7.418]
[1769697623440,10.90302367,121.61,121.53,3.58705699]
[1769697623648,3.49042367,121.61,121.53,3.58705699]
[1769697623842,298.97042367,121.64,121.54,3.58705699]
[1769697625450,118.66058273,121.67,121.56,3.53058513]
[1769697625646,3.40838273,121.67,121.57,3.53058513]
[1769697626045,7.4092,121.66,121.58,7.4138]
[1769697626349,10.81758273,121.66,121.58,7.4138]
[1769697626544,3.40838273,121.66,121.58,7.4138]
[1769697627350,7.4098,121.65,121.58,7.4138]
[1769697628351,3.40838273,121.64,121.56,7.4147]
[1769697628548,3.40838273,121.64,121.54,3.53058513]
[1769697628549,3.40838273,121.63,121.54,3.53058513]
[1769697630447,10.81938273,121.63,121.55,7.4156]
[1769697632547,10.81938273,121.63,121.55,10.93577155]
[1769697632950,7.41,121.65,121.56,3.52017155]
[1769697633150,3.48723647,121.66,121.57,3.52017155]
[1769697633547,295.22,121.67,121.59,3.52017155]
[1769697634246,302.6285,121.67,121.6,7.4125]
[1769697634446,298.70723647,121.67,121.59,3.52017155]
[1769697634753,3.48723647,121.66,121.59,3.52017155]
[1769697634948,7.4105,121.64,121.56,3.52017155]
[1769697636248,7.4111,121.63,121.56,3.52017155]
[1769697636450,3.48723647,121.63,121.56,3.52017155]
[1769697637458,3.48723647,121.66,121.56,3.52017155]
[1769697637753,3.48723647,121.65,121.56,3.52017155]
[1769697638342,3.48723647,121.63,121.54,5.16099515]
[1769697638643,3.48723647,121.61,121.5,115.4039]
[1769697638847,3.48723647,121.6,121.5,3.52017155]
[1769697640352,10.90213647,121.57,121.49,3.52017155]
[1769697640553,3.48723647,121.57,121.49,3.52017155]
[1769697641956,3.48723647,121.57,121.49,118.93227155]
[1769697642162,3.48723647,121.57,121.5,3.52017155]
[1769697642753,3.48723647,121.56,121.47,3.52017155]
[1769697643049,3.48723647,121.56,121.45,3.52017155]
[1769697643050,3.48723647,121.55,121.45,3.52017155]
[1769697643249,3.48723647,121.54,121.45,3.52017155]
[1769697643753,10.90373647,121.54,121.47,7.4206]
[1769697647155,3.48723647,121.54,121.47,7.4206]